fUSD/lending_fUSD_20240906
["ID","MTS","AMOUNT","RATE_DAILY","PERIOD"]
[337369968,1725633033761,-1665.653,0.00013358,2]
[337369969,1725633033771,-248.0,0.00013358,2]
[337369970,1725633033781,-1130.0,0.00013358,2]
[337369971,1725633033793,-1921.0,0.00013358,2]
[337369972,1725633033806,-805.0,0.00013358,2]
[337369973,1725633033817,-1016.769,0.00013358,2]
[337369974,1725633033827,-150.0,0.00013358,2]
[337369975,1725633033837,-1144.0,0.00013358,2]
[337369976,1725633033846,-9225.505,0.00013358,2]
[337369977,1725633033856,-312.793,0.00013358,2]
[337369978,1725633033867,-150.0,0.0001338,2]
[337369979,1725633033877,-16902.9344,0.00013395,2]
[337369980,1725633033888,-6593.7318,0.00013395,2]
[337369981,1725633033900,-1421.1578,0.00013395,2]
[337369982,1725633033917,-1189.5687,0.00013395,2]
[337369983,1725633033933,-7500.0,0.00013395,2]
[337369984,1725633033943,-36859.4396,0.00013395,2]
[337369985,1725633033954,-801.5619,0.00013395,2]
[337369986,1725633033963,-360.58783052,0.00013401,2]
[337369987,1725633033973,-2275.57591369,0.00013401,2]
[337369988,1725633033983,-150.0,0.00013415,2]
[337369989,1725633033994,-150.0,0.00013422,2]
[337369990,1725633034006,-973.46784647,0.00013427,2]
[337369991,1725633034016,-511.1093,0.00013428,2]
[337369992,1725633034026,-150.0,0.00013436,2]
[337369993,1725633034036,-150.0,0.0001346,2]
[337369994,1725633034046,-158.18834525,0.00013473,2]
[337369995,1725633034056,-150.0,0.00013475,2]
[337369996,1725633034067,-153.19728332,0.00013479,2]
[337369997,1725633034078,-150.74,0.00013485,2]
[337369998,1725633034088,-150.74,0.00013485,2]
[337369999,1725633034097,-150.74,0.00013485,2]
[337370000,1725633034107,-150.74,0.00013485,2]
[337370001,1725633034117,-150.74,0.00013485,2]
[337370002,1725633034127,-150.74,0.00013485,2]
[337370003,1725633034138,-150.74,0.00013485,2]
[337370004,1725633034148,-201.10166491,0.00013485,2]
[337370005,1725633034158,-150.0,0.00013485,2]
[337370006,1725633034168,-150.01,0.00013494,2]
[337370007,1725633034180,-11858.50161463,0.00013494,2]
[337370008,1725633034190,-175.2836998,0.00013494,2]
[337370009,1725633034200,-945.0,0.00013494,2]
[337370010,1725633034209,-260676.5466872,0.00013495,2]
[337370012,1725633038422,-573.15356151,0.00013295,2]
[337370013,1725633038431,-4352.28538971,0.00013495,2]
[337370014,1725633038442,-1503.72029856,0.00013495,2]
[337370015,1725633038453,-827.68936257,0.00013495,2]
[337370016,1725633038464,-10252.81543227,0.00013495,2]
[337370017,1725633038504,-3975.83966737,0.00013495,2]
[337370018,1725633038555,-2757.58727979,0.00013495,2]
[337370019,1725633038603,-8323.234,0.00013495,2]
[337370020,1725633038617,-1284.02209181,0.00013495,2]
[337370021,1725633038629,-3962.55749776,0.00013495,2]
[337370022,1725633038640,-2497.15239399,0.00013495,2]
[337370023,1725633038652,-431.9348766,0.00013495,2]
[337370024,1725633038663,-110499.99999998,0.00013495,2]
[337370025,1725633038700,-1857.89130649,0.00013495,2]
[337370026,1725633038712,-5535.53,0.00013495,2]
[337370027,1725633038724,-315.16164704,0.00013495,2]
[337370028,1725633038735,-85870.12996312,0.00013495,2]
[337370029,1725633038746,-659.75132017,0.00013495,2]
[337370030,1725633038759,-5452.29702921,0.00013495,2]
[337370032,1725633038779,-386.588,0.00013495,2]
[337370224,1725633040891,-1655.88423,0.00013495,2]
[337370226,1725633040908,-54567.38488094,0.00013495,2]
[337370235,1725633040996,-250.0,0.00013495,2]
[337370237,1725633041010,-1539.41274403,0.00013495,2]
[337370240,1725633041023,-1082.61837424,0.00013495,2]
[337370242,1725633041035,-1936.13302003,0.00013495,2]
[337370244,1725633041046,-348972.49482023,0.00013495,2]
[337370247,1725633041062,-279.86003191,0.00013495,2]
[337370289,1725633041479,-55347.29200001,0.00013495,2]
[337370292,1725633041495,-1045.02733141,0.00013495,2]
[337370539,1725633043887,-181.45,0.00012877,2]
[337370541,1725633043897,-419.84573225,0.00012962,2]
[337370543,1725633043908,-19.49301407,0.00013494,2]
[337370545,1725633043922,-442.87283028,0.00013494,2]
[337370549,1725633043934,-436.63415565,0.00013494,2]
[337370553,1725633043943,-27074.36584435,0.00013495,2]
[337370564,1725633044031,-1100.0,0.00013495,2]
[337370566,1725633044042,-4139.27659578,0.00013495,2]
[337370569,1725633044054,-274999.9999999,0.00013495,2]
[337370572,1725633044079,-462.54389446,0.00013485,2]
[337370574,1725633044091,-283.38788797,0.00013485,2]
[337370577,1725633044107,-5248.32014825,0.00013485,2]
[337370579,1725633044116,-1371.34743805,0.00013495,2]
[337370581,1725633044127,-6729.0335601,0.00013495,2]
[337370788,1725633046510,-324.24499998,0.00012689,2]
[337370790,1725633046519,-300.0,0.000128,4]
[337370792,1725633046529,-483.541,0.00013358,2]
[337370794,1725633046538,-1935.48939697,0.00013494,2]
[337370796,1725633046547,-24468.72190305,0.00013495,2]
[337370798,1725633046558,-1216.07779227,0.00013495,2]
[337370802,1725633046586,-2758.538345,0.00013495,2]
[337370804,1725633046597,-583.875,0.00013495,2]
[337370807,1725633046609,-265.32500654,0.00013495,2]
[337370809,1725633046620,-431.22961645,0.00013495,2]
[337370811,1725633046630,-275.275,0.00013495,2]
[337370813,1725633046642,-6751.79144901,0.00013495,2]
[337370820,1725633046700,-1104.7303981,0.00013495,2]
[337370830,1725633046798,-46154.32,0.00013495,2]
[337370833,1725633046810,-634.08366048,0.00013495,2]
[337372760,1725633209358,500.0,0.00026,120]
[337372761,1725633288694,750.0,0.00011,2]
[337372762,1725633472036,285.33,0.00010439,2]
[337372763,1725633562992,161.58,0.00010959,2]
[337372765,1725633832260,300.0,0.00027,120]
[337372766,1725633850563,1443.20410323,0.00011926,2]
[337372767,1725633867724,481.0,0.00027,120]
[337372962,1725634107833,500.0,0.00031459,33]
[337372963,1725634108284,395.82,0.00031459,33]
[337372964,1725634128101,500.0,0.00031459,33]
[337372965,1725634130190,-7451.40197682,0.00012013,2]
[337372966,1725634130247,-7451.40197682,0.00012013,2]
[337372967,1725634130316,-7451.40197682,0.00012013,2]
[337372968,1725634130374,-1545.79406954,0.00012013,2]
[337372969,1725634130408,-181.55,0.00012026,2]
[337372970,1725634130441,-378.57,0.00012029,2]
[337372971,1725634130473,-524.75,0.0001203,2]
[337372972,1725634130505,-1238.35,0.00012035,2]
[337372973,1725634130538,-250.0,0.00012064,2]
[337372974,1725634130576,-3332.38790728,0.00012064,2]
[337372975,1725634133844,-644.31,0.00012066,2]
[337372976,1725634133875,-210.04,0.00012076,2]
[337372977,1725634133905,-217.21,0.00012099,2]
[337372978,1725634133938,-499.99,0.00012187,2]
[337372979,1725634133969,-443.0931,0.00012187,2]
[337372980,1725634134000,-2000.0,0.00012213,2]
[337372981,1725634134032,-28.55313719,0.00012215,2]
[337372982,1725634139593,14749.2522,0.00011913,2]
[337372983,1725634154687,228.19,0.00013688,120]
[337372984,1725634184347,271.06,0.00010442,2]
[337372990,1725634231575,-250.0,0.00012355,2]
[337372991,1725634231585,-475.25,0.00012357,2]
[337372992,1725634231594,-2000.0,0.0001236,2]
[337372993,1725634231605,-150.0,0.00012472,2]
[337372994,1725634231614,-300.0,0.00012472,2]
[337372995,1725634231623,-11.45346721,0.00012483,2]
[337372996,1725634231635,-206.40653279,0.00012483,2]
[337372997,1725634231644,-194.83,0.00012615,2]
[337372998,1725634231654,-271.06,0.00012706,2]
[337372999,1725634231666,-150.0,0.00012778,2]
[337373000,1725634231675,-487.6727,0.000129,2]
[337373001,1725634231685,-1000.0,0.000129,2]
[337373002,1725634231695,-1569.0,0.000129,2]
[337373003,1725634231705,-502.259323,0.00013,2]
[337373004,1725634231714,-800.0,0.00013,2]
[337373005,1725634231724,-500.0,0.00013014,2]
[337373006,1725634231733,-1134.9,0.00013096,2]
[337373007,1725634231744,-1238.0,0.000131,2]
[337373008,1725634231754,-580.0,0.000133,2]
[337373009,1725634231762,-243.94428157,0.000133,2]
[337373010,1725634231773,-549.16695018,0.000133,2]
[337373011,1725634231786,-206.88876825,0.000133,2]
[337373012,1725634231795,-193.11123175,0.00013347,2]
[337373013,1725634231807,-1062.88876825,0.00013347,2]
[337373014,1725634231816,-624.0,0.00013347,2]
[337373015,1725634231825,-169.143,0.00013347,2]
[337373016,1725634231835,-931.647,0.00013347,2]
[337373017,1725634231844,-811.0,0.00013347,2]
[337373018,1725634231853,-680.741,0.00013347,2]
[337373019,1725634231862,-207.728,0.00013347,2]
[337373020,1725634231871,-552.0,0.00013347,2]
[337373021,1725634231881,-1900.0,0.00013347,2]
[337373022,1725634231890,-168.511,0.00013347,2]
[337373023,1725634231899,-248.0,0.00013347,2]
[337373024,1725634231909,-3341.0,0.00013347,2]
[337373025,1725634231921,-150.0,0.00013347,2]
[337373026,1725634231930,-150.0,0.00013347,2]
[337373027,1725634231940,-154.45,0.00013359,2]
[337373028,1725634231949,-1117.8786,0.0001336,2]
[337373029,1725634231960,-577.03,0.0001337,2]
[337373030,1725634231970,-714.82,0.0001337,2]
[337373031,1725634231980,-150.0,0.0001337,2]
[337373032,1725634231989,-150.0,0.0001337,2]
[337373033,1725634232001,-150.0,0.0001337,2]
[337373034,1725634232010,-300.9,0.0001337,2]
[337373035,1725634232020,-303.57,0.0001337,2]
[337373036,1725634232029,-150.0,0.0001337,2]
[337373037,1725634232039,-300.0,0.0001337,2]
[337373038,1725634232048,-150.0,0.0001337,2]
[337373039,1725634232058,-150.0,0.0001337,2]
[337373041,1725634232067,-357.41,0.0001337,2]
[337373043,1725634232076,-427.46,0.0001337,2]
[337373044,1725634232086,-150.0,0.0001337,2]
[337373045,1725634232096,-150.0,0.0001337,2]
[337373046,1725634232106,-421.24760668,0.00013377,2]
[337373047,1725634232115,-456.9474,0.00013395,2]
[337373048,1725634232124,-3454.323,0.00013395,2]
[337373049,1725634232134,-405.6249,0.00013395,2]
[337373050,1725634232144,-7500.0,0.00013395,2]
[337373051,1725634232153,-595.98162898,0.00013395,2]
[337373052,1725634232165,-3327.38182428,0.00013395,2]
[337373053,1725634232175,-2001.558261,0.000134,2]
[337373054,1725634232187,-625.96902228,0.000134,4]
[337373055,1725634232197,-332.13,0.000134,2]
[337373056,1725634232207,-300.0,0.000134,4]
[337373057,1725634232217,-500.0,0.00013494,2]
[337373058,1725634232227,-500.0,0.00013494,2]
[337373059,1725634232237,-569.99439178,0.00013494,2]
[337373060,1725634232247,-341.47763238,0.00013494,2]
[337373061,1725634232256,-69484.73714186,0.00013495,2]
[337373062,1725634232269,-268626.21983901,0.00013495,2]
[337373063,1725634232282,-198.6040918,0.00013495,2]
[337373064,1725634232291,-600.0,0.000135,4]
[337373065,1725634232300,-524.75,0.00013533,2]
[337373066,1725634232310,-1256.7567258,0.00013539,2]
[337373067,1725634232320,-21049.5475368,0.00013548,2]
[337373068,1725634232329,-3327.38182423,0.00013562,2]
[337373069,1725634232338,-255.0,0.00013569,2]
[337373070,1725634232348,-155.0,0.0001357,2]
[337373071,1725634232358,-191.033949,0.00013576,2]
[337373072,1725634232367,-176.22845629,0.00013598,2]
[337373073,1725634232377,-172.529219,0.00013598,2]
[337373074,1725634232386,-204.63828779,0.00013598,2]
[337373075,1725634232395,-1042.03524093,0.00013598,2]
[337373076,1725634232404,-2000.0,0.000136,2]
[337373077,1725634232416,-150.0,0.000136,2]
[337373078,1725634232425,-600.0,0.000136,2]
[337373079,1725634232435,-1756.86,0.000136,2]
[337373080,1725634232443,-900.0,0.000136,4]
[337373081,1725634232452,-595.98162893,0.0001361,2]
[337373082,1725634232461,-150.0,0.00013636,2]
[337373083,1725634232470,-160.22560204,0.00013673,2]
[337373084,1725634232481,-500.0,0.00013673,2]
[337373085,1725634232489,-151.04,0.00013679,2]
[337373086,1725634232499,-420.0,0.00013685,2]
[337373087,1725634232508,-20537.1468304,0.00013689,2]
[337373088,1725634232517,-20024.746124,0.00013689,2]
[337373089,1725634232526,-14769.89991197,0.00013689,2]
[337373090,1725634232537,-540.94937243,0.00013689,2]
[337373091,1725634232548,-2423.19949662,0.00013689,2]
[337373092,1725634232574,-562.21440665,0.00013689,2]
[337373093,1725634232586,-295.33202042,0.00013689,2]
[337373094,1725634232597,-552.99499924,0.00013689,2]
[337373095,1725634232609,-367.75521027,0.00013689,2]
[337373096,1725634232618,-3430.59250723,0.00013689,2]
[337373097,1725634232629,-1881.40812481,0.00013689,2]
[337373098,1725634232640,-6168.83892835,0.00013689,2]
[337373099,1725634232651,-7519.10515091,0.00013689,2]
[337373100,1725634232660,-864.61859524,0.00013689,2]
[337373101,1725634232674,-563.10986677,0.00013689,2]
[337373102,1725634232685,-862.07547104,0.00013689,2]
[337373103,1725634232696,-358.53739511,0.00013689,2]
[337373104,1725634232718,-326.80050338,0.00013689,2]
[337373105,1725634232729,-1895.56766088,0.00013689,2]
[337373113,1725634237916,-577.02,0.00012345,2]
[337373114,1725634237930,-577.02,0.00012462,2]
[337373115,1725634237940,-182.53,0.00012735,2]
[337373116,1725634237950,-233.68621527,0.0001289,2]
[337373117,1725634237965,-343.33378473,0.0001289,2]
[337373118,1725634237975,-109.30621527,0.0001299,2]
[337373119,1725634237997,-467.71378473,0.0001299,2]
[337373120,1725634238007,-386.63427339,0.0001309,2]
[337373121,1725634238024,-190.38572661,0.0001309,2]
[337373122,1725634238035,-412.47161487,0.00013221,2]
[337373123,1725634238045,-577.02,0.00013337,2]
[337373124,1725634238054,-334.75703088,0.00013337,2]
[337373125,1725634238111,-242.26296912,0.00013337,2]
[337373126,1725634238122,-577.02,0.00013337,2]
[337373127,1725634238132,-577.02,0.00013337,2]
[337373128,1725634238142,-577.02,0.0001335,2]
[337373129,1725634238152,-207.18950648,0.00013598,2]
[337373130,1725634238162,-200.0,0.00013673,2]
[337373131,1725634238175,-915.22737977,0.00013689,2]
[337373132,1725634238186,-1850.0,0.00013689,2]
[337373133,1725634238198,-1765.0,0.00013689,2]
[337373134,1725634238210,-870.0340065,0.00013689,2]
[337373135,1725634238222,-644.59173948,0.00013689,2]
[337373136,1725634238233,-7571.98138673,0.00013689,2]
[337373137,1725634238243,-1226.1640001,0.00013689,2]
[337373138,1725634238253,-1195.5712744,0.00013689,2]
[337373139,1725634238263,-1164.9785487,0.00013689,2]
[337373140,1725634238272,-1134.385823,0.00013689,2]
[337373141,1725634238282,-1103.7930973,0.00013689,2]
[337373142,1725634238294,-153.413,0.00013689,2]
[337373143,1725634238304,-1198.4825934,0.00013691,2]
[337373144,1725634238316,-451.57864314,0.00013691,2]
[337373145,1725634238328,-336.02450626,0.00013691,2]
[337373146,1725634238337,-518.98149353,0.00013692,2]
[337373147,1725634238349,-880.12,0.00013692,2]
[337373148,1725634238370,-538.63775937,0.00013692,2]
[337373149,1725634238380,-189.33904165,0.00013697,2]
[337373150,1725634238389,-150.51745403,0.00013697,2]
[337373151,1725634238398,-761.0,0.00013698,2]
[337373152,1725634238408,-500.0,0.00013698,2]
[337373153,1725634238417,-500.0,0.00013698,2]
[337373154,1725634238428,-500.0,0.00013698,2]
[337373155,1725634238438,-500.0,0.00013698,2]
[337373157,1725634238447,-500.0,0.00013698,2]
[337373159,1725634238456,-500.0,0.00013698,2]
[337373161,1725634238466,-500.0,0.00013698,2]
[337373163,1725634238475,-363.72703072,0.00013698,2]
[337373166,1725634238490,-136.27296928,0.00013698,2]
[337373167,1725634238499,-500.0,0.00013698,2]
[337373168,1725634238509,-500.0,0.00013698,2]
[337373169,1725634238519,-235.92703072,0.00013698,2]
[337373170,1725634238550,-264.07296928,0.00013698,2]
[337373171,1725634238559,-500.0,0.00013698,2]
[337373172,1725634238569,-500.0,0.00013698,2]
[337373173,1725634238578,-500.0,0.00013698,2]
[337373181,1725634238741,-500.0,0.00013698,2]
[337373183,1725634238751,-500.0,0.00013698,2]
[337373185,1725634238762,-500.0,0.00013698,2]
[337373187,1725634238773,-500.0,0.00013698,2]
[337373189,1725634238782,-500.0,0.00013698,2]
[337373192,1725634238792,-500.0,0.00013698,2]
[337373193,1725634238802,-500.0,0.00013698,2]
[337373195,1725634238812,-500.0,0.00013698,2]
[337373197,1725634238822,-218.74,0.00013698,2]
[337373199,1725634238832,-500.0,0.00013698,2]
[337373201,1725634238843,-500.0,0.00013698,2]
[337373203,1725634238853,-500.0,0.00013698,2]
[337373205,1725634238863,-512.63222731,0.00013698,2]
[337373208,1725634238874,-500.0,0.00013698,2]
[337373209,1725634238884,-500.0,0.00013698,2]
[337373211,1725634238895,-408.42662725,0.00013698,2]
[337373213,1725634238905,-500.0,0.00013698,2]
[337373215,1725634238916,-500.0,0.00013698,2]
[337373217,1725634238928,-500.0,0.00013698,2]
[337373219,1725634238938,-500.0,0.00013698,2]
[337373221,1725634238948,-500.0,0.00013698,2]
[337373223,1725634238957,-500.0,0.00013698,2]
[337373225,1725634238967,-500.0,0.00013698,2]
[337373227,1725634238977,-500.0,0.00013698,2]
[337373229,1725634238987,-500.0,0.00013698,2]
[337373231,1725634238996,-500.0,0.00013698,2]
[337373233,1725634239006,-500.0,0.00013698,2]
[337373235,1725634239016,-500.0,0.00013698,2]
[337373237,1725634239026,-500.0,0.00013698,2]
[337373239,1725634239035,-500.0,0.00013698,2]
[337373241,1725634239045,-500.0,0.00013698,2]
[337373243,1725634239055,-500.0,0.00013698,2]
[337373245,1725634239065,-500.0,0.00013698,2]
[337373247,1725634239074,-500.0,0.00013698,2]
[337373249,1725634239084,-500.0,0.00013698,2]
[337373251,1725634239094,-500.0,0.00013698,2]
[337373253,1725634239103,-500.0,0.00013698,2]
[337373255,1725634239113,-278.62523548,0.00013698,2]
[337373257,1725634239123,-500.0,0.00013698,2]
[337373259,1725634239133,-500.0,0.00013698,2]
[337373261,1725634239143,-500.0,0.00013698,2]
[337373263,1725634239153,-500.0,0.00013698,2]
[337373265,1725634239163,-500.0,0.00013698,2]
[337373267,1725634239175,-500.0,0.00013698,2]
[337373269,1725634239184,-500.0,0.00013698,2]
[337373271,1725634239194,-500.0,0.00013698,2]
[337373273,1725634239204,-500.0,0.00013698,2]
[337373275,1725634239215,-500.0,0.00013698,2]
[337373277,1725634239224,-500.0,0.00013698,2]
[337373279,1725634239234,-500.0,0.00013698,2]
[337373280,1725634239243,-500.0,0.00013698,2]
[337373283,1725634239255,-500.0,0.00013698,2]
[337373285,1725634239264,-464.50294068,0.00013698,2]
[337373289,1725634239300,-35.49705932,0.00013698,2]
[337373291,1725634239310,-500.0,0.00013698,2]
[337373293,1725634239320,-500.0,0.00013698,2]
[337373294,1725634239331,-500.0,0.00013698,2]
[337373296,1725634239339,-500.0,0.00013698,2]
[337373298,1725634239349,-500.0,0.00013698,2]
[337373300,1725634239358,-500.0,0.00013698,2]
[337373302,1725634239369,-178.74,0.00013698,2]
[337373304,1725634239380,-151.0,0.00013698,2]
[337373306,1725634239389,-500.0,0.00013698,2]
[337373308,1725634239398,-500.0,0.00013698,2]
[337373310,1725634239408,-500.0,0.00013698,2]
[337373312,1725634239417,-500.0,0.00013698,2]
[337373314,1725634239429,-500.0,0.00013698,2]
[337373316,1725634239439,-500.0,0.00013698,2]
[337373318,1725634239448,-500.0,0.00013698,2]
[337373320,1725634239457,-500.0,0.00013698,2]
[337373322,1725634239468,-500.0,0.00013698,2]
[337373324,1725634239478,-500.0,0.00013698,2]
[337373326,1725634239488,-500.0,0.00013698,2]
[337373328,1725634239499,-500.0,0.00013698,2]
[337373330,1725634239508,-500.0,0.00013698,2]
[337373332,1725634239518,-500.0,0.00013698,2]
[337373334,1725634239528,-500.0,0.00013698,2]
[337373336,1725634239537,-500.0,0.00013698,2]
[337373338,1725634239547,-500.0,0.00013698,2]
[337373340,1725634239556,-514.78790621,0.00013698,2]
[337373342,1725634239566,-500.0,0.00013698,2]
[337373344,1725634239575,-171.11994504,0.00013698,2]
[337373346,1725634239585,-577.98543651,0.00013698,2]
[337373348,1725634239594,-184.673627,0.00013698,2]
[337373350,1725634239604,-500.0,0.00013698,2]
[337373352,1725634239615,-500.0,0.00013698,2]
[337373354,1725634239624,-500.0,0.00013698,2]
[337373356,1725634239634,-597.76,0.00013698,2]
[337373358,1725634239644,-151.0,0.00013698,2]
[337373360,1725634239654,-509.79,0.00013698,2]
[337373362,1725634239663,-509.79,0.00013698,2]
[337373364,1725634239675,-509.79,0.00013698,2]
[337373366,1725634239684,-509.79,0.00013698,2]
[337373368,1725634239694,-509.79,0.00013698,2]
[337373370,1725634239704,-509.79,0.00013698,2]
[337373372,1725634239713,-509.79,0.00013698,2]
[337373374,1725634239723,-509.79,0.00013698,2]
[337373376,1725634239733,-509.79,0.00013698,2]
[337373378,1725634239743,-509.79,0.00013698,2]
[337373380,1725634239752,-509.79,0.00013698,2]
[337373382,1725634239762,-509.79,0.00013698,2]
[337373384,1725634239771,-509.79,0.00013698,2]
[337373386,1725634239781,-509.79,0.00013698,2]
[337373388,1725634239791,-509.79,0.00013698,2]
[337373390,1725634239800,-509.79,0.00013698,2]
[337373392,1725634239810,-509.79,0.00013698,2]
[337373394,1725634239819,-509.79,0.00013698,2]
[337373396,1725634239828,-509.79,0.00013698,2]
[337373398,1725634239838,-509.79,0.00013698,2]
[337373400,1725634239847,-509.79,0.00013698,2]
[337373402,1725634239857,-509.79,0.00013698,2]
[337373404,1725634239866,-226.55602592,0.00013698,2]
[337373409,1725634239903,-283.23397408,0.00013698,2]
[337373411,1725634239912,-509.87,0.00013698,2]
[337373413,1725634239923,-162.86630368,0.00013698,2]
[337373415,1725634239936,-337.13369632,0.00013698,2]
[337373417,1725634239945,-500.0,0.00013698,2]
[337373419,1725634239955,-502.39781884,0.00013698,2]
[337373421,1725634239965,-500.0,0.00013698,2]
[337373423,1725634239975,-458.3290004,0.00013698,2]
[337373425,1725634239985,-500.0,0.00013698,2]
[337373427,1725634239995,-500.0,0.00013698,2]
[337373429,1725634240004,-500.0,0.00013698,2]
[337373431,1725634240014,-500.0,0.00013698,2]
[337373433,1725634240023,-500.0,0.00013698,2]
[337373435,1725634240033,-138.63118194,0.00013698,2]
[337373438,1725634240049,-361.36881806,0.00013698,2]
[337373440,1725634240058,-500.0,0.00013698,2]
[337373442,1725634240068,-500.0,0.00013698,2]
[337373444,1725634240078,-500.0,0.00013698,2]
[337373446,1725634240087,-500.0,0.00013698,2]
[337373448,1725634240097,-500.0,0.00013698,2]
[337373450,1725634240106,-500.0,0.00013698,2]
[337373452,1725634240116,-500.0,0.00013698,2]
[337373454,1725634240126,-500.0,0.00013698,2]
[337373456,1725634240135,-500.0,0.00013698,2]
[337373458,1725634240144,-500.0,0.00013698,2]
[337373460,1725634240154,-143.85060515,0.00013698,2]
[337373483,1725634240371,-276.67,0.00013698,2]
[337373486,1725634240384,-79.47939485,0.00013698,2]
[337373488,1725634240393,-451.3859602,0.00013698,2]
[337373490,1725634240405,-48.6140398,0.00013698,2]
[337373492,1725634240415,-270.42262379,0.00013698,2]
[337373494,1725634240425,-170.1422487,0.00013698,2]
[337373499,1725634240469,-329.8577513,0.00013698,2]
[337373501,1725634240479,-500.0,0.00013698,2]
[337373503,1725634240489,-500.0,0.00013698,2]
[337373506,1725634240499,-500.0,0.00013698,2]
[337373508,1725634240509,-500.0,0.00013698,2]
[337373510,1725634240519,-276.9,0.00013698,2]
[337373512,1725634240530,-500.0,0.00013698,2]
[337373514,1725634240539,-500.0,0.00013698,2]
[337373516,1725634240549,-500.0,0.00013698,2]
[337373518,1725634240558,-500.0,0.00013698,2]
[337373520,1725634240568,-500.0,0.00013698,2]
[337373522,1725634240578,-500.0,0.00013698,2]
[337373524,1725634240587,-500.0,0.00013698,2]
[337373526,1725634240597,-500.0,0.00013698,2]
[337373528,1725634240607,-500.0,0.00013698,2]
[337373530,1725634240618,-500.0,0.00013698,2]
[337373531,1725634240627,-500.0,0.00013698,2]
[337373533,1725634240636,-500.0,0.00013698,2]
[337373535,1725634240646,-500.0,0.00013698,2]
[337373537,1725634240656,-500.0,0.00013698,2]
[337373539,1725634240665,-500.0,0.00013698,2]
[337373541,1725634240676,-500.0,0.00013698,2]
[337373543,1725634240686,-500.0,0.00013698,2]
[337373545,1725634240695,-500.0,0.00013698,2]
[337373547,1725634240705,-500.0,0.00013698,2]
[337373549,1725634240714,-500.0,0.00013698,2]
[337373551,1725634240724,-500.0,0.00013698,2]
[337373552,1725634240734,-482.86961646,0.00013698,2]
[337373554,1725634240743,-500.0,0.00013698,2]
[337373556,1725634240753,-500.0,0.00013698,2]
[337373558,1725634240762,-500.0,0.00013698,2]
[337373560,1725634240772,-500.0,0.00013698,2]
[337373562,1725634240781,-500.0,0.00013698,2]
[337373564,1725634240791,-500.0,0.00013698,2]
[337373566,1725634240801,-500.0,0.00013698,2]
[337373568,1725634240810,-500.0,0.00013698,2]
[337373570,1725634240821,-500.0,0.00013698,2]
[337373572,1725634240830,-500.0,0.00013698,2]
[337373574,1725634240839,-500.0,0.00013698,2]
[337373576,1725634240850,-500.0,0.00013698,2]
[337373578,1725634240860,-500.0,0.00013698,2]
[337373580,1725634240870,-308.37489879,0.00013698,2]
[337373582,1725634240880,-500.0,0.00013698,2]
[337373584,1725634240889,-500.0,0.00013698,2]
[337373586,1725634240899,-500.0,0.00013698,2]
[337373588,1725634240909,-500.0,0.00013698,2]
[337373590,1725634240919,-500.0,0.00013698,2]
[337373592,1725634240932,-500.0,0.00013698,2]
[337373594,1725634240942,-500.0,0.00013698,2]
[337373596,1725634240952,-500.0,0.00013698,2]
[337373598,1725634240962,-500.0,0.00013698,2]
[337373600,1725634240972,-500.0,0.00013698,2]
[337373602,1725634240982,-500.0,0.00013698,2]
[337373604,1725634240991,-500.0,0.00013698,2]
[337373606,1725634241000,-500.0,0.00013698,2]